[Event "Titled Tuesday Blitz October 11 Early 2022"]
[White "Kalajzic, Ivan"]
[Black "Barria Zuniga, Daniel"]
[WhiteFideId "14506378"]
[BlackFideId "3400816"]
[WhiteElo "2163"]
[BlackElo "2414"]
[Result "0-1"]
[Round "01"]
[TimeControl "180+1"]
[Date "2022.10.12"]
[WhiteClock "0:00:01"]
[BlackClock "0:00:07"]

1. b3 {[%clk 0:02:46]}  d5 {[%clk 0:02:55]} 2. Bb2 {[%clk 0:02:46]}  c5 {[%clk 0:02:54]} 3. e3 {[%clk 0:02:46]}  a6 {[%clk 0:02:53]} 4. Nf3 {[%clk 0:02:44]}  Nf6 {[%clk 0:02:49]} 5. d4 {[%clk 0:02:44]}  Nbd7 {[%clk 0:02:43]} 6. Nbd2 {[%clk 0:02:44]}  b5 {[%clk 0:02:41]} 7. a4 {[%clk 0:02:42]}  b4 {[%clk 0:02:40]} 8. Bd3 {[%clk 0:02:41]}  e6 {[%clk 0:02:34]} 9. O-O {[%clk 0:02:41]}  Be7 {[%clk 0:02:34]} 10. Re1 {[%clk 0:02:38]}  O-O {[%clk 0:02:27]} 11. e4 {[%clk 0:02:38]}  Bb7 {[%clk 0:02:24]} 12. e5 {[%clk 0:02:37]}  Ne8 {[%clk 0:02:23]} 13. h3 {[%clk 0:02:24]}  a5 {[%clk 0:02:20]} 14. Nh2 {[%clk 0:02:22]}  Rc8 {[%clk 0:02:08]} 15. Qg4 {[%clk 0:02:15]}  Qb6 {[%clk 0:01:52]} 16. Nhf3 {[%clk 0:02:11]}  Ba6 {[%clk 0:01:49]} 17. Bxa6 {[%clk 0:01:41]}  Qxa6 {[%clk 0:01:50]} 18. h4 {[%clk 0:01:38]}  g6 {[%clk 0:01:29]} 19. h5 {[%clk 0:01:37]}  Ng7 {[%clk 0:01:29]} 20. hxg6 {[%clk 0:01:28]}  fxg6 {[%clk 0:01:19]} 21. Rac1 {[%clk 0:01:25]}  c4 {[%clk 0:01:13]} 22. c3 {[%clk 0:01:19]}  Nb6 {[%clk 0:01:06]} 23. bxc4 {[%clk 0:01:12]}  Nxa4 {[%clk 0:01:00]} 24. cxd5 {[%clk 0:01:04]}  Nxb2 {[%clk 0:00:59]} 25. d6 {[%clk 0:01:00]}  Bd8 {[%clk 0:00:58]} 26. cxb4 {[%clk 0:00:49]}  Rxc1 {[%clk 0:00:57]} 27. Rxc1 {[%clk 0:00:50]}  axb4 {[%clk 0:00:52]} 28. Ng5 {[%clk 0:00:51]}  Nd3 {[%clk 0:00:41]} 29. Rb1 {[%clk 0:00:47]}  Nf4 {[%clk 0:00:37]} 30. Nde4 {[%clk 0:00:43]}  Qc4 {[%clk 0:00:20]} 31. g3 {[%clk 0:00:31]}  Ne2+ {[%clk 0:00:16]} 32. Kg2 {[%clk 0:00:31]}  Nc3 {[%clk 0:00:16]} 33. Rb2 {[%clk 0:00:27]}  Qd5 {[%clk 0:00:15]} 34. Kh2 {[%clk 0:00:25]}  h5 {[%clk 0:00:10]} 35. Nxc3 {[%clk 0:00:14]}  bxc3 {[%clk 0:00:09]} 36. Qe2 {[%clk 0:00:10]}  cxb2 {[%clk 0:00:09]} 37. Qxb2 {[%clk 0:00:11]}  Bxg5 {[%clk 0:00:08]} 38. Qc2 {[%clk 0:00:08]}  Nf5 {[%clk 0:00:08]} 39. f4 {[%clk 0:00:08]}  Bh6 {[%clk 0:00:08]} 40. Qc7 {[%clk 0:00:08]}  Bg7 {[%clk 0:00:07]} 41. d7 {[%clk 0:00:07]}  h4 {[%clk 0:00:07]} 42. Qc5 {[%clk 0:00:05]}  hxg3+ {[%clk 0:00:06]} 43. Kh3 {[%clk 0:00:05]}  Qf3 {[%clk 0:00:06]} 44. Qxf8+ {[%clk 0:00:02]}  Bxf8 {[%clk 0:00:06]} 45. d8=Q {[%clk 0:00:01]}  Qh5+ {[%clk 0:00:06]} 46. Kg2 {[%clk 0:00:01]}  Qe2+ {[%clk 0:00:06]} 47. Kg1 {[%clk 0:00:01]}  Qh2+ {[%clk 0:00:07]} 48. Kf1 {[%clk 0:00:01]}  Qf2# {[%clk 0:00:07]} 0-1


[Site "https://www.chess.com"]

[Event "Titled Tuesday Blitz October 11 Early 2022"]
[White "Katz, Alexander"]
[Black "Mills, Morgen"]
[WhiteFideId "2039796"]
[BlackFideId "2013304"]
[WhiteElo "2388"]
[BlackElo "2186"]
[Result "1/2-1/2"]
[Round "01"]
[TimeControl "180+1"]
[Date "2022.10.12"]
[WhiteClock "0:00:23"]
[BlackClock "0:00:21"]

1. d4 {[%clk 0:02:59]}  d5 {[%clk 0:02:58]} 2. c4 {[%clk 0:02:59]}  e6 {[%clk 0:02:57]} 3. Nf3 {[%clk 0:02:59]}  Nf6 {[%clk 0:02:56]} 4. Nc3 {[%clk 0:02:59]}  Be7 {[%clk 0:02:54]} 5. Bf4 {[%clk 0:02:58]}  a6 {[%clk 0:02:51]} 6. e3 {[%clk 0:02:57]}  O-O {[%clk 0:02:50]} 7. Qc2 {[%clk 0:02:57]}  c6 {[%clk 0:02:34]} 8. c5 {[%clk 0:02:46]}  b6 {[%clk 0:02:31]} 9. cxb6 {[%clk 0:02:45]}  Qxb6 {[%clk 0:02:32]} 10. Bd3 {[%clk 0:02:44]}  c5 {[%clk 0:02:24]} 11. dxc5 {[%clk 0:02:39]}  Bxc5 {[%clk 0:02:24]} 12. O-O {[%clk 0:02:39]}  Be7 {[%clk 0:02:15]} 13. e4 {[%clk 0:02:36]}  dxe4 {[%clk 0:02:11]} 14. Nxe4 {[%clk 0:02:35]}  Nbd7 {[%clk 0:02:06]} 15. Bc7 {[%clk 0:02:11]}  Qa7 {[%clk 0:01:58]} 16. Bd6 {[%clk 0:01:55]}  Re8 {[%clk 0:01:46]} 17. Bxe7 {[%clk 0:01:44]}  Rxe7 {[%clk 0:01:47]} 18. Rfd1 {[%clk 0:01:42]}  Bb7 {[%clk 0:01:40]} 19. Rac1 {[%clk 0:01:36]}  Bd5 {[%clk 0:01:21]} 20. Nxf6+ {[%clk 0:01:20]}  Nxf6 {[%clk 0:01:18]} 21. Ne5 {[%clk 0:01:20]}  h6 {[%clk 0:01:08]} 22. Nc6 {[%clk 0:01:16]}  Bxc6 {[%clk 0:01:04]} 23. Qxc6 {[%clk 0:01:17]}  Qb7 {[%clk 0:00:59]} 24. b4 {[%clk 0:00:55]}  Nd5 {[%clk 0:00:50]} 25. a3 {[%clk 0:00:47]}  Qxc6 {[%clk 0:00:46]} 26. Rxc6 {[%clk 0:00:48]}  a5 {[%clk 0:00:42]} 27. b5 {[%clk 0:00:47]}  a4 {[%clk 0:00:42]} 28. Be4 {[%clk 0:00:45]}  Rd7 {[%clk 0:00:40]} 29. g3 {[%clk 0:00:42]}  Rb8 {[%clk 0:00:40]} 30. Rb1 {[%clk 0:00:36]}  Ne7 {[%clk 0:00:37]} 31. Rc4 {[%clk 0:00:35]}  Nd5 {[%clk 0:00:36]} 32. Rb2 {[%clk 0:00:29]}  Nb6 {[%clk 0:00:35]} 33. Rc1 {[%clk 0:00:27]}  Rd4 {[%clk 0:00:34]} 34. Bb1 {[%clk 0:00:21]}  Rbd8 {[%clk 0:00:33]} 35. Kg2 {[%clk 0:00:20]}  Rd2 {[%clk 0:00:33]} 36. Rxd2 {[%clk 0:00:19]}  Rxd2 {[%clk 0:00:33]} 37. Rc6 {[%clk 0:00:20]}  Rb2 {[%clk 0:00:32]} 38. Rxb6 {[%clk 0:00:18]}  Rxb1 {[%clk 0:00:32]} 39. Rb8+ {[%clk 0:00:16]}  Kh7 {[%clk 0:00:32]} 40. b6 {[%clk 0:00:16]}  Rb3 {[%clk 0:00:30]} 41. b7 {[%clk 0:00:15]}  Kg6 {[%clk 0:00:30]} 42. h4 {[%clk 0:00:15]}  h5 {[%clk 0:00:30]} 43. Kf1 {[%clk 0:00:15]}  Kf5 {[%clk 0:00:29]} 44. Ke2 {[%clk 0:00:16]}  f6 {[%clk 0:00:29]} 45. Kd2 {[%clk 0:00:16]}  g6 {[%clk 0:00:30]} 46. Kc2 {[%clk 0:00:17]}  e5 {[%clk 0:00:30]} 47. Kd2 {[%clk 0:00:17]}  Ke4 {[%clk 0:00:30]} 48. Ke2 {[%clk 0:00:17]}  Rb2+ {[%clk 0:00:30]} 49. Kd1 {[%clk 0:00:17]}  Kf3 {[%clk 0:00:27]} 50. Rf8 {[%clk 0:00:18]}  Rxb7 {[%clk 0:00:25]} 51. Rxf6+ {[%clk 0:00:18]}  Kg2 {[%clk 0:00:25]} 52. Rxg6 {[%clk 0:00:18]}  Kxf2 {[%clk 0:00:25]} 53. Rg5 {[%clk 0:00:19]}  e4 {[%clk 0:00:24]} 54. Rxh5 {[%clk 0:00:20]}  Kxg3 {[%clk 0:00:24]} 55. Ke2 {[%clk 0:00:19]}  Rb3 {[%clk 0:00:24]} 56. Re5 {[%clk 0:00:19]}  e3 {[%clk 0:00:18]} 57. Rxe3+ {[%clk 0:00:19]}  Rxe3+ {[%clk 0:00:18]} 58. Kxe3 {[%clk 0:00:20]}  Kxh4 {[%clk 0:00:19]} 59. Kd4 {[%clk 0:00:21]}  Kg5 {[%clk 0:00:20]} 60. Kc5 {[%clk 0:00:20]}  Kf6 {[%clk 0:00:20]} 61. Kb5 {[%clk 0:00:21]}  Ke6 {[%clk 0:00:20]} 62. Kxa4 {[%clk 0:00:22]}  Kd6 {[%clk 0:00:20]} 63. Kb5 {[%clk 0:00:23]}  Kc7 {[%clk 0:00:21]} 64. Ka6 {[%clk 0:00:23]}  Kb8 {[%clk 0:00:21]} 1/2-1/2


[Site "https://www.chess.com"]

[Event "Titled Tuesday Blitz October 11 Early 2022"]
[White "Kazakov, Mikhail"]
[Black "Shipov, Sergei"]
[WhiteFideId "14102749"]
[BlackFideId "4113624"]
[WhiteElo "2413"]
[BlackElo "2765"]
[Result "0-1"]
[Round "01"]
[TimeControl "180+1"]
[Date "2022.10.12"]
[WhiteClock "0:01:14"]
[BlackClock "0:02:22"]

1. d4 {[%clk 0:02:57]}  d5 {[%clk 0:02:58]} 2. c4 {[%clk 0:02:56]}  dxc4 {[%clk 0:02:57]} 3. Nf3 {[%clk 0:02:55]}  a6 {[%clk 0:02:57]} 4. e3 {[%clk 0:02:55]}  e6 {[%clk 0:02:54]} 5. Bxc4 {[%clk 0:02:53]}  c5 {[%clk 0:02:55]} 6. O-O {[%clk 0:02:52]}  Nf6 {[%clk 0:02:55]} 7. Nc3 {[%clk 0:02:49]}  b5 {[%clk 0:02:54]} 8. Bd3 {[%clk 0:02:49]}  cxd4 {[%clk 0:02:54]} 9. Nxd4 {[%clk 0:02:40]}  Bb7 {[%clk 0:02:53]} 10. Be2 {[%clk 0:02:40]}  Nbd7 {[%clk 0:02:51]} 11. Bf3 {[%clk 0:02:39]}  Qc7 {[%clk 0:02:49]} 12. Bxb7 {[%clk 0:02:36]}  Qxb7 {[%clk 0:02:48]} 13. Qf3 {[%clk 0:02:37]}  Qxf3 {[%clk 0:02:48]} 14. Nxf3 {[%clk 0:02:37]}  Rc8 {[%clk 0:02:42]} 15. Bd2 {[%clk 0:02:07]}  Bd6 {[%clk 0:02:42]} 16. Rfc1 {[%clk 0:02:06]}  Ke7 {[%clk 0:02:42]} 17. Ne2 {[%clk 0:02:02]}  Ne4 {[%clk 0:02:39]} 18. Rxc8 {[%clk 0:01:53]}  Rxc8 {[%clk 0:02:38]} 19. Rc1 {[%clk 0:01:53]}  Rc5 {[%clk 0:02:38]} 20. Rxc5 {[%clk 0:01:51]}  Ndxc5 {[%clk 0:02:36]} 21. Kf1 {[%clk 0:01:43]}  Nd3 {[%clk 0:02:34]} 22. b3 {[%clk 0:01:37]}  Ndxf2 {[%clk 0:02:33]} 23. Ba5 {[%clk 0:01:30]}  Ng4 {[%clk 0:02:33]} 24. Ned4 {[%clk 0:01:27]}  Nxe3+ {[%clk 0:02:31]} 25. Kg1 {[%clk 0:01:27]}  Kd7 {[%clk 0:02:28]} 26. a4 {[%clk 0:01:17]}  bxa4 {[%clk 0:02:27]} 27. bxa4 {[%clk 0:01:18]}  h6 {[%clk 0:02:22]} 28. Ne1 {[%clk 0:01:14]}  Nc5 {[%clk 0:02:22]} 0-1


[Site "https://www.chess.com"]

[Event "Titled Tuesday Blitz October 11 Early 2022"]
[White "Kiseljova, Marya"]
[Black "Ovchinnikov, Vsevolod"]
[WhiteFideId "4155009"]
[BlackFideId "24176842"]
[WhiteElo "1931"]
[BlackElo "2376"]
[Result "0-1"]
[Round "01"]
[TimeControl "180+1"]
[Date "2022.10.12"]
[WhiteClock "0:00:05"]
[BlackClock "0:00:30"]

1. d4 {[%clk 0:02:58]}  Nf6 {[%clk 0:02:59]} 2. c4 {[%clk 0:02:57]}  g6 {[%clk 0:03:00]} 3. Nc3 {[%clk 0:02:56]}  d5 {[%clk 0:03:00]} 4. cxd5 {[%clk 0:02:56]}  Nxd5 {[%clk 0:03:01]} 5. Bd2 {[%clk 0:02:55]}  Bg7 {[%clk 0:03:01]} 6. e4 {[%clk 0:02:55]}  Nxc3 {[%clk 0:03:01]} 7. Bxc3 {[%clk 0:02:56]}  c5 {[%clk 0:03:01]} 8. d5 {[%clk 0:02:50]}  Bxc3+ {[%clk 0:03:00]} 9. bxc3 {[%clk 0:02:51]}  O-O {[%clk 0:02:58]} 10. f4 {[%clk 0:02:39]}  e5 {[%clk 0:02:36]} 11. dxe6 {[%clk 0:02:11]}  Qxd1+ {[%clk 0:02:34]} 12. Rxd1 {[%clk 0:02:10]}  Bxe6 {[%clk 0:02:34]} 13. Rd2 {[%clk 0:02:05]}  Nc6 {[%clk 0:02:31]} 14. Nf3 {[%clk 0:02:03]}  Rad8 {[%clk 0:02:27]} 15. a3 {[%clk 0:01:47]}  Rxd2 {[%clk 0:02:01]} 16. Nxd2 {[%clk 0:01:47]}  Na5 {[%clk 0:01:52]} 17. Bd3 {[%clk 0:01:33]}  Rd8 {[%clk 0:01:50]} 18. Ke2 {[%clk 0:01:31]}  f6 {[%clk 0:01:35]} 19. Rb1 {[%clk 0:01:30]}  b6 {[%clk 0:01:33]} 20. h3 {[%clk 0:01:16]}  Kf8 {[%clk 0:01:23]} 21. g4 {[%clk 0:01:14]}  Ke7 {[%clk 0:01:22]} 22. Bb5 {[%clk 0:00:54]}  g5 {[%clk 0:01:12]} 23. fxg5 {[%clk 0:00:50]}  fxg5 {[%clk 0:01:13]} 24. Nf3 {[%clk 0:00:46]}  h6 {[%clk 0:01:13]} 25. Ne5 {[%clk 0:00:44]}  Kf6 {[%clk 0:01:09]} 26. Nc6 {[%clk 0:00:30]}  Nxc6 {[%clk 0:01:04]} 27. Bxc6 {[%clk 0:00:31]}  Bc4+ {[%clk 0:01:04]} 28. Ke1 {[%clk 0:00:16]}  Rd3 {[%clk 0:01:02]} 29. Rd1 {[%clk 0:00:10]}  Rxd1+ {[%clk 0:00:47]} 30. Kxd1 {[%clk 0:00:10]}  Bf1 {[%clk 0:00:47]} 31. Kd2 {[%clk 0:00:09]}  Bxh3 {[%clk 0:00:46]} 32. Bd7 {[%clk 0:00:09]}  Ke5 {[%clk 0:00:45]} 33. Ke3 {[%clk 0:00:09]}  Bf1 {[%clk 0:00:44]} 34. Bf5 {[%clk 0:00:07]}  Bc4 {[%clk 0:00:44]} 35. Bd7 {[%clk 0:00:06]}  Bb3 {[%clk 0:00:43]} 36. Bf5 {[%clk 0:00:06]}  Be6 {[%clk 0:00:28]} 37. Bg6 {[%clk 0:00:05]}  Bxg4 {[%clk 0:00:28]} 38. Bf7 {[%clk 0:00:05]}  h5 {[%clk 0:00:27]} 39. Bg6 {[%clk 0:00:04]}  h4 {[%clk 0:00:28]} 40. Kf2 {[%clk 0:00:04]}  Kf4 {[%clk 0:00:28]} 41. Kg2 {[%clk 0:00:04]}  Bf3+ {[%clk 0:00:28]} 42. Kh3 {[%clk 0:00:04]}  Bxe4 {[%clk 0:00:29]} 43. Bh5 {[%clk 0:00:04]}  Bf5+ {[%clk 0:00:29]} 44. Kg2 {[%clk 0:00:04]}  g4 {[%clk 0:00:29]} 45. Bf7 {[%clk 0:00:04]}  Be4+ {[%clk 0:00:29]} 46. Kf2 {[%clk 0:00:04]}  g3+ {[%clk 0:00:30]} 47. Kg1 {[%clk 0:00:05]}  h3 {[%clk 0:00:30]} 0-1


[Site "https://www.chess.com"]

[Event "Titled Tuesday Blitz October 11 Early 2022"]
[White "Korchmar, Vasiliy"]
[Black "Dwilewicz, Katarzyna"]
[WhiteFideId "24131750"]
[BlackFideId "1148486"]
[WhiteElo "2370"]
[BlackElo "2023"]
[Result "1-0"]
[Round "01"]
[TimeControl "180+1"]
[Date "2022.10.12"]
[WhiteClock "0:01:23"]
[BlackClock "0:01:13"]

1. e4 {[%clk 0:03:00]}  c5 {[%clk 0:02:58]} 2. Nf3 {[%clk 0:03:00]}  e6 {[%clk 0:02:58]} 3. g3 {[%clk 0:03:00]}  Nc6 {[%clk 0:02:58]} 4. Bg2 {[%clk 0:03:00]}  Nf6 {[%clk 0:02:55]} 5. Qe2 {[%clk 0:03:00]}  d5 {[%clk 0:02:55]} 6. exd5 {[%clk 0:02:33]}  Nxd5 {[%clk 0:02:54]} 7. O-O {[%clk 0:02:30]}  Be7 {[%clk 0:02:54]} 8. Rd1 {[%clk 0:02:14]}  Qb6 {[%clk 0:02:52]} 9. c4 {[%clk 0:02:03]}  Nf6 {[%clk 0:02:48]} 10. Nc3 {[%clk 0:01:58]}  O-O {[%clk 0:02:48]} 11. d3 {[%clk 0:01:57]}  Bd7 {[%clk 0:02:43]} 12. Bf4 {[%clk 0:01:52]}  Rad8 {[%clk 0:02:34]} 13. a3 {[%clk 0:01:50]}  Rfe8 {[%clk 0:02:31]} 14. Rab1 {[%clk 0:01:49]}  a6 {[%clk 0:02:28]} 15. Be3 {[%clk 0:01:46]}  Qc7 {[%clk 0:02:21]} 16. h3 {[%clk 0:01:39]}  Bc8 {[%clk 0:02:16]} 17. d4 {[%clk 0:01:33]}  cxd4 {[%clk 0:02:14]} 18. Nxd4 {[%clk 0:01:34]}  Nxd4 {[%clk 0:02:04]} 19. Bxd4 {[%clk 0:01:35]}  Bc5 {[%clk 0:01:51]} 20. Bxf6 {[%clk 0:01:32]}  gxf6 {[%clk 0:01:51]} 21. b4 {[%clk 0:01:33]}  Qxg3 {[%clk 0:01:39]} 22. Ne4 {[%clk 0:01:29]}  Rxd1+ {[%clk 0:01:19]} 23. Rxd1 {[%clk 0:01:28]}  Qxa3 {[%clk 0:01:14]} 24. Nxf6+ {[%clk 0:01:25]}  Kf8 {[%clk 0:01:13]} 25. bxc5 {[%clk 0:01:23]} 1-0


[Site "https://www.chess.com"]

[Event "Titled Tuesday Blitz October 11 Early 2022"]
[White "Kosteniuk, Alexandra"]
[Black "Sowul, Bartosz"]
[WhiteFideId "4128125"]
[BlackFideId "1137590"]
[WhiteElo "2469"]
[BlackElo "2188"]
[Result "1-0"]
[Round "01"]
[TimeControl "180+1"]
[Date "2022.10.12"]
[WhiteClock "0:01:15"]
[BlackClock "0:00:16"]

1. Nf3 {[%clk 0:02:57]}  c5 {[%clk 0:02:48]} 2. c4 {[%clk 0:02:53]}  Nc6 {[%clk 0:02:47]} 3. g3 {[%clk 0:02:54]}  g6 {[%clk 0:02:47]} 4. d4 {[%clk 0:02:52]}  cxd4 {[%clk 0:02:46]} 5. Nxd4 {[%clk 0:02:53]}  Bg7 {[%clk 0:02:47]} 6. Nc2 {[%clk 0:02:53]}  Nf6 {[%clk 0:02:46]} 7. Bg2 {[%clk 0:02:53]}  O-O {[%clk 0:02:46]} 8. Nc3 {[%clk 0:02:52]}  d6 {[%clk 0:02:41]} 9. O-O {[%clk 0:02:51]}  Qa5 {[%clk 0:02:41]} 10. Rb1 {[%clk 0:02:46]}  Qh5 {[%clk 0:02:35]} 11. Ne3 {[%clk 0:02:32]}  Bh3 {[%clk 0:02:29]} 12. Bf3 {[%clk 0:02:27]}  Qe5 {[%clk 0:02:23]} 13. Re1 {[%clk 0:02:22]}  e6 {[%clk 0:02:16]} 14. Ng2 {[%clk 0:02:15]}  Qc5 {[%clk 0:02:09]} 15. b3 {[%clk 0:02:06]}  Ne5 {[%clk 0:01:32]} 16. Be3 {[%clk 0:01:59]}  Nxf3+ {[%clk 0:01:27]} 17. exf3 {[%clk 0:01:59]}  Qc6 {[%clk 0:01:25]} 18. Nb5 {[%clk 0:01:55]}  a6 {[%clk 0:01:18]} 19. Nxd6 {[%clk 0:01:50]}  Rad8 {[%clk 0:01:08]} 20. c5 {[%clk 0:01:50]}  Ng4 {[%clk 0:00:57]} 21. Nf4 {[%clk 0:01:43]}  Ne5 {[%clk 0:00:52]} 22. Nxh3 {[%clk 0:01:26]}  Nxf3+ {[%clk 0:00:52]} 23. Kf1 {[%clk 0:01:25]}  Nxh2+ {[%clk 0:00:34]} 24. Ke2 {[%clk 0:01:24]}  b6 {[%clk 0:00:28]} 25. b4 {[%clk 0:01:20]}  Bc3 {[%clk 0:00:24]} 26. Rh1 {[%clk 0:01:16]}  Qf3+ {[%clk 0:00:22]} 27. Kd3 {[%clk 0:01:15]}  Ng4 {[%clk 0:00:17]} 28. Qxf3 {[%clk 0:01:13]}  Ne5+ {[%clk 0:00:16]} 29. Ke2 {[%clk 0:01:13]}  Nxf3 {[%clk 0:00:16]} 30. Kxf3 {[%clk 0:01:14]}  bxc5 {[%clk 0:00:16]} 31. bxc5 {[%clk 0:01:15]} 1-0


[Site "https://www.chess.com"]

[Event "Titled Tuesday Blitz October 11 Early 2022"]
[White "Kovalenko, Igor"]
[Black "Ianov, Viktor"]
[WhiteFideId "14117908"]
[BlackFideId "14102730"]
[WhiteElo "2574"]
[BlackElo "2152"]
[Result "1-0"]
[Round "01"]
[TimeControl "180+1"]
[Date "2022.10.11"]
[WhiteClock "0:00:44"]
[BlackClock "0:00:19"]

1. c4 {[%clk 0:02:59]}  d6 {[%clk 0:02:56]} 2. Nc3 {[%clk 0:02:57]}  g6 {[%clk 0:02:54]} 3. d4 {[%clk 0:02:57]}  Bg7 {[%clk 0:02:54]} 4. e4 {[%clk 0:02:57]}  Nf6 {[%clk 0:02:53]} 5. h3 {[%clk 0:02:57]}  O-O {[%clk 0:02:52]} 6. Be3 {[%clk 0:02:57]}  c5 {[%clk 0:02:51]} 7. dxc5 {[%clk 0:02:54]}  Qa5 {[%clk 0:02:50]} 8. Bd3 {[%clk 0:02:55]}  dxc5 {[%clk 0:02:49]} 9. e5 {[%clk 0:02:53]}  Nfd7 {[%clk 0:02:48]} 10. f4 {[%clk 0:02:46]}  Nc6 {[%clk 0:02:47]} 11. Ne2 {[%clk 0:02:46]}  f6 {[%clk 0:02:46]} 12. exf6 {[%clk 0:02:31]}  exf6 {[%clk 0:02:44]} 13. Qa4 {[%clk 0:02:20]}  f5 {[%clk 0:02:37]} 14. Qxa5 {[%clk 0:02:20]}  Nxa5 {[%clk 0:02:37]} 15. O-O-O {[%clk 0:02:21]}  Re8 {[%clk 0:02:26]} 16. Bf2 {[%clk 0:02:20]}  Nb6 {[%clk 0:02:20]} 17. b3 {[%clk 0:02:19]}  Be6 {[%clk 0:02:09]} 18. Bxc5 {[%clk 0:02:18]}  Rec8 {[%clk 0:02:07]} 19. Bd4 {[%clk 0:02:17]}  Nd7 {[%clk 0:01:54]} 20. Bxg7 {[%clk 0:02:16]}  Kxg7 {[%clk 0:01:54]} 21. Nd4 {[%clk 0:02:17]}  Bf7 {[%clk 0:01:53]} 22. Bxf5 {[%clk 0:02:04]}  gxf5 {[%clk 0:01:45]} 23. Nxf5+ {[%clk 0:02:05]}  Kf6 {[%clk 0:01:45]} 24. g4 {[%clk 0:02:03]}  Nc5 {[%clk 0:01:33]} 25. Rd6+ {[%clk 0:02:02]}  Be6 {[%clk 0:01:28]} 26. Rhd1 {[%clk 0:01:36]}  Nc6 {[%clk 0:01:23]} 27. R1d5 {[%clk 0:01:26]}  b6 {[%clk 0:01:21]} 28. Rxc5 {[%clk 0:01:24]}  bxc5 {[%clk 0:01:20]} 29. Ne4+ {[%clk 0:01:24]}  Kf7 {[%clk 0:01:12]} 30. Ng5+ {[%clk 0:01:25]}  Kg8 {[%clk 0:01:07]} 31. Nxe6 {[%clk 0:01:23]}  Kh8 {[%clk 0:00:55]} 32. Kb2 {[%clk 0:01:16]}  Nb4 {[%clk 0:00:54]} 33. a3 {[%clk 0:01:11]}  Nc6 {[%clk 0:00:49]} 34. Nxc5 {[%clk 0:01:11]}  Rab8 {[%clk 0:00:47]} 35. Nd7 {[%clk 0:01:07]}  Rb7 {[%clk 0:00:44]} 36. Nc5 {[%clk 0:01:04]}  Rbb8 {[%clk 0:00:39]} 37. Kc3 {[%clk 0:01:04]}  a5 {[%clk 0:00:38]} 38. Rd5 {[%clk 0:00:58]}  Re8 {[%clk 0:00:35]} 39. Nd7 {[%clk 0:00:52]}  Rbd8 {[%clk 0:00:32]} 40. Nd6 {[%clk 0:00:51]}  Re3+ {[%clk 0:00:28]} 41. Kd2 {[%clk 0:00:51]}  Rxd7 {[%clk 0:00:22]} 42. Kxe3 {[%clk 0:00:50]}  Kg8 {[%clk 0:00:22]} 43. Ne4 {[%clk 0:00:49]}  Re7 {[%clk 0:00:21]} 44. Kf3 {[%clk 0:00:49]}  Kf7 {[%clk 0:00:20]} 45. g5 {[%clk 0:00:46]}  Kg6 {[%clk 0:00:19]} 46. Rd6+ {[%clk 0:00:44]} 1-0


[Site "https://www.chess.com"]

[Event "Titled Tuesday Blitz October 11 Early 2022"]
[White "Krishnan, Varun"]
[Black "Saucey, Michel"]
[WhiteFideId "5054508"]
[BlackFideId "601845"]
[WhiteElo "2634"]
[BlackElo "2253"]
[Result "1/2-1/2"]
[Round "01"]
[TimeControl "180+1"]
[Date "2022.10.12"]
[WhiteClock "0:00:05"]
[BlackClock "0:00:15"]

1. e4 {[%clk 0:03:00]}  c5 {[%clk 0:02:59]} 2. Nf3 {[%clk 0:02:58]}  e6 {[%clk 0:02:59]} 3. c3 {[%clk 0:02:53]}  d5 {[%clk 0:02:56]} 4. exd5 {[%clk 0:02:52]}  Qxd5 {[%clk 0:02:57]} 5. d4 {[%clk 0:02:52]}  Nf6 {[%clk 0:02:57]} 6. Be2 {[%clk 0:02:49]}  Be7 {[%clk 0:02:56]} 7. O-O {[%clk 0:02:49]}  O-O {[%clk 0:02:55]} 8. Be3 {[%clk 0:02:49]}  cxd4 {[%clk 0:02:48]} 9. cxd4 {[%clk 0:02:50]}  Nc6 {[%clk 0:02:46]} 10. Nc3 {[%clk 0:02:49]}  Qd6 {[%clk 0:02:46]} 11. a3 {[%clk 0:02:29]}  b6 {[%clk 0:02:44]} 12. Bd3 {[%clk 0:02:20]}  Bb7 {[%clk 0:02:43]} 13. Bc2 {[%clk 0:02:18]}  Rfd8 {[%clk 0:02:40]} 14. Qd3 {[%clk 0:02:16]}  g6 {[%clk 0:02:40]} 15. Rfe1 {[%clk 0:02:12]}  Rac8 {[%clk 0:02:38]} 16. Rad1 {[%clk 0:02:10]}  Nd5 {[%clk 0:02:31]} 17. Ne4 {[%clk 0:01:52]}  Qb8 {[%clk 0:02:27]} 18. Bb3 {[%clk 0:01:40]}  Na5 {[%clk 0:02:13]} 19. Ba2 {[%clk 0:01:39]}  Nc6 {[%clk 0:01:53]} 20. Bh6 {[%clk 0:01:25]}  Qc7 {[%clk 0:01:37]} 21. Qd2 {[%clk 0:01:02]}  Na5 {[%clk 0:01:35]} 22. Rc1 {[%clk 0:00:50]}  Qd7 {[%clk 0:01:33]} 23. Ne5 {[%clk 0:00:46]}  Qe8 {[%clk 0:01:31]} 24. b4 {[%clk 0:00:37]}  Nc6 {[%clk 0:01:29]} 25. Ng4 {[%clk 0:00:30]}  Kh8 {[%clk 0:01:06]} 26. Bxd5 {[%clk 0:00:29]}  Rxd5 {[%clk 0:01:05]} 27. Ngf6 {[%clk 0:00:28]}  Qd8 {[%clk 0:01:04]} 28. Nxd5 {[%clk 0:00:27]}  Qxd5 {[%clk 0:01:03]} 29. Qf4 {[%clk 0:00:25]}  f5 {[%clk 0:00:55]} 30. Nc3 {[%clk 0:00:18]}  Qxd4 {[%clk 0:00:49]} 31. Rxe6 {[%clk 0:00:18]}  Qxf4 {[%clk 0:00:47]} 32. Bxf4 {[%clk 0:00:17]}  Bf8 {[%clk 0:00:40]} 33. Nd5 {[%clk 0:00:17]}  Kg8 {[%clk 0:00:36]} 34. b5 {[%clk 0:00:17]}  Na5 {[%clk 0:00:32]} 35. Rxc8 {[%clk 0:00:17]}  Bxc8 {[%clk 0:00:32]} 36. Ne7+ {[%clk 0:00:17]}  Kf7 {[%clk 0:00:32]} 37. Nxc8 {[%clk 0:00:15]}  Kxe6 {[%clk 0:00:31]} 38. Nxa7 {[%clk 0:00:15]}  Bxa3 {[%clk 0:00:31]} 39. Be3 {[%clk 0:00:15]}  Nc4 {[%clk 0:00:30]} 40. Kf1 {[%clk 0:00:12]}  Nxe3+ {[%clk 0:00:28]} 41. fxe3 {[%clk 0:00:11]}  Bc5 {[%clk 0:00:27]} 42. Ke2 {[%clk 0:00:11]}  Kd5 {[%clk 0:00:26]} 43. Kd3 {[%clk 0:00:11]}  g5 {[%clk 0:00:25]} 44. Nc6 {[%clk 0:00:11]}  h5 {[%clk 0:00:23]} 45. g3 {[%clk 0:00:11]}  g4 {[%clk 0:00:21]} 46. Nb8 {[%clk 0:00:07]}  Ke6 {[%clk 0:00:19]} 47. Nc6 {[%clk 0:00:05]}  Kd5 {[%clk 0:00:18]} 48. Nd4 {[%clk 0:00:06]}  Ke5 {[%clk 0:00:15]} 49. Nc6+ {[%clk 0:00:05]}  Kd5 {[%clk 0:00:15]} 1/2-1/2


[Site "https://www.chess.com"]